{"text_format":"3","workbook":"xlsx","n_sheets":3,"sheets":["GV-SL","Translation","Selections"],"not_rendered":{"images":7,"defined_names":1},"read":"whole","date_system":"1900"}

{"sheet":"GV-SL","index":0,"n_rows":67,"n_cols":27,"rows_kept":67,"merged":[[1,9,2,9],[1,18,2,18],[1,25,2,25],[2,10,3,11],[3,3,4,3],[3,9,4,9],[3,18,4,18],[3,25,4,25],[5,9,6,10],[5,18,6,18],[5,25,6,25],[7,9,8,9],[7,18,8,18],[7,25,8,25],[10,0,11,1],[10,5,11,5],[11,7,12,7],[12,8,13,8],[13,5,14,5],[14,12,15,13],[20,2,21,2],[22,20,24,26],[27,19,27,20],[27,21,28,21],[27,22,28,22],[27,23,27,24],[27,25,27,26],[28,11,43,11],[29,6,39,6],[29,21,35,21],[29,22,35,22],[29,23,35,23],[29,24,35,24],[29,25,35,25],[29,26,35,26],[30,16,36,16],[32,12,43,12],[32,15,36,15],[39,19,39,20],[39,21,40,21],[39,22,40,22],[39,23,39,24],[39,25,39,26],[41,21,47,21],[41,22,47,22],[41,23,47,23],[41,24,47,24],[41,25,47,25],[41,26,47,26],[50,19,50,26],[51,19,51,20],[51,21,51,22],[51,23,51,24],[51,25,51,26],[53,21,56,21],[53,22,54,22],[53,23,59,24],[53,25,56,25],[53,26,54,26],[55,22,59,22],[55,26,59,26],[57,21,59,21],[57,25,59,25],[61,22,61,26],[62,22,64,26]]}
[]
["Zvolte jazyk",{"$nulls":7},{"$f":"Translation!D37","v":"Szerokość otworu (W) [mm]"},{"$nulls":8},{"$f":"Translation!D13","v":"Głębokość prowadzenia (D) [mm]"},{"$f":"IF(OR(J4=\"\",S8=\"\"),\"\",IF(S8=Selections!Q29,J4+180,IF(S8=Selections!Q30,J4+180,\"Error\")))","v":""},{"$nulls":5},{"$f":"Translation!D43","v":"Rodzaj napędu"}]
["Select a language",{"$nulls":9},{"$f":"IF(J2/1000*J4/1000<14,\"\",\"W x H max. 14m2\")","v":""}]
["Wählen Sie eine Sprache:",null,null,"PL",{"$nulls":4},{"$f":"Translation!D27","v":"Wysokość otworu budowlanego (H) [mm]"},{"$nulls":8},{"$f":"Translation!D17","v":"Dolna krawędź prowadzenia poziomego (K) [mm]"},{"$f":"IF(OR(J4=\"\",S8=\"\"),\"\",IF(S8=Selections!Q29,J4+100,IF(S8=Selections!Q30,J4+190,\"Error\")))","v":""},{"$nulls":5},{"$f":"Translation!D15","v":"Długość napędu (X) [mm]"},{"$f":"IF(OR(Z2=\"\",J4=\"\"),\"\",IF(Z2=Selections!K29,VLOOKUP(J4,Selections!K30:L31,2,TRUE),IF(Z2=Selections!K33,VLOOKUP(J4,Selections!K34:L35,2,TRUE),\"Error\")))","v":""}]
["Wybierz język:"]
["Sélectionner une langue:",{"$nulls":7},{"$f":"Translation!D38","v":"Sterowanie"},{"$nulls":8},{"$f":"Translation!D11","v":"Dolna krawędź w pełni otwartej bramy (CPH) [mm]"},{"$f":"IF(J4=\"\",\"\",J4)","v":""},{"$nulls":5},{"$f":"Translation!D19","v":"Punkt uchwycenia szyny napędu (E1) [mm]"},{"$f":"IF(Z2=\"\",\"\",1400)","v":""}]
["Kies een taal:"]
[{"$nulls":8},{"$f":"Translation!D42","v":"Wysokość nadproża (F) [mm]"},{"$nulls":8},{"$f":"Translation!D48","v":"SL wersja"},{"$nulls":6},{"$f":"Translation!D21","v":"Punkt uchwycenia napędu (E2) [mm]"},{"$f":"IF(OR(Z2=\"\",J4=\"\"),\"\",IF(Z2=Selections!N29,VLOOKUP(J4,Selections!N30:O31,2,TRUE),IF(Z2=Selections!N33,VLOOKUP(J4,Selections!N34:O35,2,TRUE),\"Error\")))","v":""}]
[]
[{"$nulls":19},"W",{"$f":"Translation!D36","v":"Szerokość otworu [mm]"}]
["   Z",{"$nulls":4},{"$f":"IF(OR(J4=\"\",Z2=\"\"),\"X\",\"X = \"&Z4)","v":"X"},{"$nulls":13},"H",{"$f":"Translation!D26","v":"Wysokość otworu budowlanego [mm]"}]
[{"$nulls":7},{"$f":"IF(OR(J4=\"\",Z2=\"\"),\"E2\",\"E2 = \"&Z8)","v":"E2"},{"$nulls":11},"D",{"$f":"Translation!D12","v":"Głębokość prowadzenia [mm]"}]
[{"$nulls":8},{"$f":"IF(OR(J4=\"\",S2=\"\"),\"D\",\"D = \"&S2)","v":"D"},{"$nulls":10},"K",{"$f":"Translation!D16","v":"Dolna krawędź prowadzenia poziomego [mm]"}]
[{"$nulls":5},"Y1 = 400",{"$nulls":13},"F",{"$f":"Translation!D41","v":"Wysokość nadproża [mm]"}]
[{"$nulls":12},{"$f":"IF(OR(J2=\"\",J4=\"\"),\"Y2, E1\",IF(OR(J2>3000,J4>2500),\"Y2 = E1 = 1400\",\"E1 = 1400\"))","v":"Y2, E1"},{"$nulls":6},"CEL",{"$f":"Translation!D8","v":"Wysokość stropu [mm]"}]
[{"$nulls":19},"CPH*",{"$f":"Translation!D10","v":"Dolna krawędź w pełni otwartej bramy [mm]"}]
[{"$nulls":19},"Y1",{"$f":"Translation!D22","v":"Punkt uchwycenia"}]
[{"$nulls":19},"Y2",{"$f":"Translation!D23","v":"Punkt uchwycenia (W>3000 lub H>2500)"}]
[{"$nulls":19},"X",{"$f":"Translation!D14","v":"Długość napędu [mm]"}]
[{"$nulls":4},255,{"$nulls":14},"E1",{"$f":"Translation!D18","v":"Punkt uchwycenia szyny napędu [mm]"}]
[{"$nulls":19},"E2",{"$f":"Translation!D20","v":"Punkt uchwycenia napędu [mm]"}]
[{"$nulls":19},"Z",{"$f":"Translation!D33","v":"Położenie gniazda około 250 mm"}]
[{"$nulls":19},"*1",{"$f":"Translation!D50","v":"wysokość prześwitu może zostać zmniejszona dzięki akcesoriom zainstalowanym po wewnętrznej stronie skrzydła drzwi (uchwyt, wzmocnienie itp.)"}]
[null,null,{"$f":"Translation!D34","v":"Gniazdo CEE 7/3 lub CEE 7/5"},{"$nulls":12},"H"]
[null,null,{"$f":"Translation!D35","v":"230V, 50Hz, ochrona za pomocą bezpiecznika 6A (10A)"}]
[]
[{"$nulls":12},470,{"$nulls":6},{"$f":"Selections!Q29","v":"SL 350"}]
[{"$nulls":19},"H",null,"D","K",{"$f":"Translation!D6","v":"Brama bez napędu"},null,{"$f":"Translation!D7","v":"Brama z napędem"}]
[{"$nulls":11},{"$f":"IF(OR(J4=\"\",S8=\"\"),\"SL 350: K = H + 100 / SL 420: K = H + 190\",\"K = \"&S4)","v":"SL 350: K = H + 100 / SL 420: K = H + 190"},{"$nulls":7},">","<=",null,null,"min. CEL","CPH*1",{"$f":"X29","v":"min. CEL"},"CPH*1"]
[{"$nulls":6},{"$f":"IF(OR(J4=\"\",S8=\"\"),\"SL 350: H + 50 / SL 420: H + 140\",S4-50)","v":"SL 350: H + 50 / SL 420: H + 140"},{"$nulls":13},2000,"H + 180","H + 100","H + 350","H","H + 350","H"]
[{"$nulls":16},{"$f":"IF(OR(J4=\"\",J8=\"\"),\"CEL = min. H + 350\",\"CEL = \"&J4+J8)","v":"CEL = min. H + 350"},null,null,{"$f":"U30+1","v":2001},2125]
[{"$nulls":19},{"$f":"U31+1","v":2126},2250]
[{"$nulls":12},{"$f":"IF(OR(J4=\"\",S8=\"\"),\"SL 350: H - 190 / SL 420: H - 100\",S4-290)","v":"SL 350: H - 190 / SL 420: H - 100"},null,null,{"$f":"IF(J4=\"\",\"CPH\",\"CPH = \"&S6)","v":"CPH"},{"$nulls":3},2251,2375]
[{"$nulls":19},2376,2500]
[{"$nulls":19},2501,2750]
[{"$nulls":19},2751,3000]
[]
[]
[{"$nulls":19},{"$f":"Selections!Q30","v":"SL 420"}]
[{"$nulls":19},"H",null,"D","K",{"$f":"Translation!D6","v":"Brama bez napędu"},null,{"$f":"Translation!D7","v":"Brama z napędem"}]
[{"$nulls":19},">","<=",null,null,"min. CEL","CPH*1",{"$f":"X41","v":"min. CEL"},"CPH*1"]
[{"$nulls":20},2000,"H + 180","H + 190","H + 420","H","H + 420","H"]
[{"$nulls":19},{"$f":"U42+1","v":2001},2125]
[{"$nulls":19},{"$f":"U43+1","v":2126},2250]
[{"$nulls":19},2251,2375]
[{"$nulls":19},2376,2500]
[{"$nulls":19},2501,2750]
[{"$nulls":13},250,{"$nulls":5},2751,3000]
[]
[]
[{"$nulls":19},{"$f":"Translation!D44","v":"Informacje o napędu"}]
[{"$nulls":19},"H",null,"X",null,"E1",null,"E2"]
[null,{"$f":"Translation!D52","v":"Minimalne obciążenie sufitu / maksymalne obciążenie w każdym punkcie uchwycenia: 100 kg"},{"$nulls":17},">","<=","Black","RUN 600",{"$f":"V53","v":"Black"},{"$f":"W53","v":"RUN 600"},{"$f":"X53","v":"Black"},{"$f":"Y53","v":"RUN 600"}]
[{"$nulls":20},2000,3540,3100,1400,null,3265,2950]
[">=125",{"$nulls":4},"W",{"$nulls":5},"  >=125",{"$nulls":7},{"$f":"U54+1","v":2001},2125]
[{"$nulls":19},{"$f":"U55+1","v":2126},2250,null,{"$f":"V58","v":4240},{"$nulls":3},4060]
[{"$nulls":19},2251,2375]
[{"$nulls":13},50,{"$nulls":5},2376,2500,4240,{"$nulls":3},3975]
[{"$nulls":19},2501,2750]
[{"$nulls":19},2751,3000]
[]
[{"$nulls":22},"http://door-documents.com/en/guardy-installation-drawing-sl"]
[{"$nulls":22},"Guardy SL"]
[]
[]
[{"$nulls":25},{"$f":"Translation!D31","v":"Wersja:"},{"$f":"Translation!D32","v":"Format:"}]
[{"$nulls":25},1850,"A4"]

{"sheet":"Translation","index":1,"n_rows":52,"n_cols":10,"rows_kept":52,"hidden":true}
[{"$nulls":3},"SL"]
[{"$nulls":3},{"$f":"IF('GV-SL'!D4=E2,1,IF('GV-SL'!D4=F2,2,IF('GV-SL'!D4=G2,3,IF('GV-SL'!D4=H2,4,IF('GV-SL'!D4=I2,5,IF('GV-SL'!D4=J2,6,\"Chyba\"))))))","v":4},"CZ","EN","DE","PL","FR","NL"]
[{"$nulls":3},{"$f":"VLOOKUP(E3,E:J,$D$2,FALSE)","v":"Ogólna "},"Obecná","General","Allgemeine","Ogólna ","Hauteur","Algemene"]
[{"$nulls":3},"wysokość [mm]","výška [mm]","height [mm]","Höhe [mm]","wysokość [mm]","Générale [mm]","hoogte [mm]"]
[{"$nulls":3},"Min wysokość stropu [mm]","Min. výška stropu [mm]","Min. height of ceiling [mm]","Min. Deckenhöhe [mm]","Min wysokość stropu [mm]","Hauteur minimale du plafond [mm]","Min. plafondhoogte [mm]"]
[{"$nulls":3},"Brama bez napędu","Vrata bez motoru","Manually operated","Tor ohne Motor","Brama bez napędu","Porte sans moteur","Deur zonder motor"]
[{"$nulls":3},"Brama z napędem","Vrata s motorem","Electrically operated","Tor mit Motor","Brama z napędem","Porte avec moteur","Garaged. met motor"]
[{"$nulls":3},"Wysokość stropu [mm]","Výška stropu [mm]","Height of ceiling [mm]","Deckenhöhe [mm]","Wysokość stropu [mm]","Hauteur du plafond [mm]","Plafondhoogte [mm]"]
[{"$nulls":3},"Wysokość do dolnej krawędzi profilu nadproża [mm]","Výška ke spodní hraně překladového profilu [mm]","Height to bottom edge of lintel profile [mm]","Höhe zur unteren Kante des Sturzprofiles [mm]","Wysokość do dolnej krawędzi profilu nadproża [mm]","Hauteur jusqu'à l'arête inférieure du profilé de linteau [mm]","Hoogte vanaf de onderrand van het dwarsbalkprofiel [mm]"]
[{"$nulls":3},"Dolna krawędź w pełni otwartej bramy [mm]","Spodní hrana plně otevřených vrat [mm]","Bottom edge of fully open door [mm]","Untere Kante des vollständig geöffneten Tors [mm]","Dolna krawędź w pełni otwartej bramy [mm]","Arête inférieure de la porte toute ouverte [mm]","Onderste rand van een volledig geopende deur [mm]"]
[{"$nulls":3},"Dolna krawędź w pełni otwartej bramy (CPH) [mm]","Spodní hrana plně otevřených vrat (CPH) [mm]","Bottom edge of fully open door (CPH) [mm]","Untere Kante des vollständig geöffneten Tors (CPH) [mm]","Dolna krawędź w pełni otwartej bramy (CPH) [mm]","Arête inférieure de la porte toute ouverte (CPH) [mm]","Onderste rand van een volledig geopende deur (CPH) [mm]"]
[{"$nulls":3},"Głębokość prowadzenia [mm]","Hloubka vedení [mm]","Back room [mm]","Führungstiefe [mm]","Głębokość prowadzenia [mm]","Profondeur du guidage [mm]","Inbouwdiepte van de rails [mm]"]
[{"$nulls":3},"Głębokość prowadzenia (D) [mm]","Hloubka vedení (D) [mm]","Back room (D) [mm]","Führungstiefe (D) [mm]","Głębokość prowadzenia (D) [mm]","Profondeur du guidage (D) [mm]","Diepte van de geleidingsrail (D) [mm]"]
[{"$nulls":3},"Długość napędu [mm]","Délka pohonu [mm]","Length of motor [mm]","Antriebslänge [mm]","Długość napędu [mm]","Longueur de la propulsion [mm]","Inbouwdiepte incl. de aandrijving [mm]"]
[{"$nulls":3},"Długość napędu (X) [mm]","Délka pohonu (X) [mm]","Length of motor (X) [mm]","Antriebslänge (X) [mm]","Długość napędu (X) [mm]","Longueur de la propulsion (X) [mm]","Inbouwdiepte incl. de aandrijving (X) [mm]"]
[{"$nulls":3},"Dolna krawędź prowadzenia poziomego [mm]","Spodní hrana horizontálního vedení [mm]","Bottom edge of horizontal tracks [mm]","Untere Kante der Horizontalführung [mm]","Dolna krawędź prowadzenia poziomego [mm]","Arête inférieure du guidage horizontale [mm]","Onderste rand van de horizontale rails [mm]"]
[{"$nulls":3},"Dolna krawędź prowadzenia poziomego (K) [mm]","Spodní hrana horizontálního vedení (K) [mm]","Bottom edge of horizontal tracks (K) [mm]","Untere Kante der Horizontalführung (K) [mm]","Dolna krawędź prowadzenia poziomego (K) [mm]","Arête inférieure du guidage horizontale (K) [mm]","Onderste rand van de horizontale rails (K) [mm]"]
[{"$nulls":3},"Punkt uchwycenia szyny napędu [mm]","Kotvící bod lišty pohonu [mm]","Hanging point for motor track [mm]","Verankerungspunkt der Antriebsleiste [mm]","Punkt uchwycenia szyny napędu [mm]","Point d'ancrage de la glissière de propulsion [mm]","Bevestigingspunt van de motorgeleidingsrail [mm]"]
[{"$nulls":3},"Punkt uchwycenia szyny napędu (E1) [mm]","Kotvící bod lišty pohonu (E1) [mm]","Hanging point for motor track (E1) [mm]","Verankerungspunkt der Antriebsleiste (E1) [mm]","Punkt uchwycenia szyny napędu (E1) [mm]","Point d'ancrage de la glissière de propulsion (E1) [mm]","Bevestigingspunt van de motorgeleidingsrail (E1) [mm]"]
[{"$nulls":3},"Punkt uchwycenia napędu [mm]","Kotvící bod pohonu [mm]","Hanging point for motor [mm]","Verankerungspunkt des Antriebes [mm]","Punkt uchwycenia napędu [mm]","Point d'ancrage de la propulsion [mm]","Bevestigingspunt van de aandrijvingsgeleidingsbalk [mm]"]
[{"$nulls":3},"Punkt uchwycenia napędu (E2) [mm]","Kotvící bod pohonu (E2) [mm]","Hanging point for motor (E2) [mm]","Verankerungspunkt des Antriebes (E2) [mm]","Punkt uchwycenia napędu (E2) [mm]","Point d'ancrage de la propulsion (E2) [mm]","Bevestigingsp. van de aandrijvingsgeleidingsbalk (E2) [mm]"]
[{"$nulls":3},"Punkt uchwycenia","Kotvící bod","Hanging point","Verankerungspunkt","Punkt uchwycenia","Point d'ancrage","Bevestigingspunt"]
[{"$nulls":3},"Punkt uchwycenia (W>3000 lub H>2500)","Kotvící bod (W>3000 nebo H>2500)","Hanging point (W>3000 or H>2500)","Verankerungspunkt (W>3000 oder H>2500)","Punkt uchwycenia (W>3000 lub H>2500)","Point d'ancrage (W>3000 ou H>2500)","Bevestigingspunt (W>3000 of H>2500)"]
[{"$nulls":3},"Instalacja standardowa","Standardní montáž","Standard installation","Standardmontage","Instalacja standardowa","Assemblage standard","Standaardmontage"]
[{"$nulls":3},"Instalacja alternatywna","Alternativní montáž","Alternative installation","Alternative Montage","Instalacja alternatywna","Assemblage alternatif ","Alternatieve montage"]
[{"$nulls":3},"Wysokość otworu budowlanego [mm]","Výška stavebního otvoru [mm]","Clear opening height [mm]","Höhe der Bauöffnung [mm]","Wysokość otworu budowlanego [mm]","Hauteur de la baie de construction [mm]","Dagmaat hoogte [mm]"]
[{"$nulls":3},"Wysokość otworu budowlanego (H) [mm]","Výška stavebního otvoru (H) [mm]","Clear opening height (H) [mm]","Höhe der Bauöffnung (H) [mm]","Wysokość otworu budowlanego (H) [mm]","Hauteur de la baie de construction (H) [mm]","Dagmaat hoogte (H) [mm]"]
[{"$nulls":3},"Sytuacja standardowa","Standardní situace","Standard situation","Standardsituation","Sytuacja standardowa","Situation standard","Standaardsituatie"]
[{"$nulls":3},"Sytuacja niestandardowa","Nestandardní situace","Non-standard situation","Ungewöhnliche Situation","Sytuacja niestandardowa","Situation hors de standard","Niet-standaardsituaties"]
[{"$nulls":3},"Skład paneli i konstrukcja skrzydła jest zawsze rozpatrywane na podstawie FOH.","Skladba panelů a design křídla je vždy řešen vůči FOH.","Panel assembly and design of door leaf is always considered based on FOH.","Die Paneelaufteilung und das Design des Torblattes wird immer auf der Basis von FOH-Mass gelöst.","Skład paneli i konstrukcja skrzydła jest zawsze rozpatrywane na podstawie FOH.","Assemblage de panneau et la conception de battant de porte est toujours considéré comme la base de FOH.","Paneel samenstelling en complete opbouw van het deurblad wordt altijd  gebaseerd op FOH."]
[{"$nulls":3},"Wersja:","Verze:","Version:","Version:","Wersja:","VERSION:","Versie:"]
[{"$nulls":3},"Format:","Formát:","Sheet:","Format:","Format:","FORMAT:","Formaat:"]
[{"$nulls":3},"Położenie gniazda około 250 mm","Pozice zásuvky, cca. 250 mm","Position of socket, ca. 250 mm","Die Position der Steckdose ca.250 mm","Położenie gniazda około 250 mm","La position de la prise électrique env. 250 mm","Positie van Eurostopcontact CEE, ca. 250mm"]
[{"$nulls":3},"Gniazdo CEE 7/3 lub CEE 7/5","Zásuvka typu CEE 7/3 nebo CEE 7/5","CEE 7/3 or CEE 7/5 socket","Steckdose CEE 7/3 oder CEE 7/5","Gniazdo CEE 7/3 lub CEE 7/5","Prise CEE 7/3 ou CEE 7/5","Eurostopcontact CEE 7/3 of CEE 7/5"]
[{"$nulls":3},"230V, 50Hz, ochrona za pomocą bezpiecznika 6A (10A)","230V, 50Hz, jištěno 6 A (10 A) jističem","230V, 50Hz, protect by 6 A (10 A) circuit breaker","230V, 50Hz, Sicherung 6 A (10 A) mit Schutzschalter","230V, 50Hz, ochrona za pomocą bezpiecznika 6A (10A)","230V, 50Hz, assuré par un disjoncteur 6 A (10 A)","230V, 50Hz, afgezekerd met 6A (10A)"]
[{"$nulls":3},"Szerokość otworu [mm]","Šířka stavebního otvoru [mm]","Opening width [mm]","Lichte Breite [mm]","Szerokość otworu [mm]","Largeur de baie [mm]","Opening breedte "]
[{"$nulls":3},"Szerokość otworu (W) [mm]","Šířka stavebního otvoru (W) [mm]","Opening width (W) [mm]","Lichte Breite (W) [mm]","Szerokość otworu (W) [mm]","Largeur de baie (W) [mm]","Opening breedte (W) [mm]"]
[{"$nulls":3},"Sterowanie","Ovládání","Operated","Bedienung","Sterowanie","Commande","Bediening"]
[{"$nulls":3},"ręcznie wykonany","ručně","manually","händisch","ręcznie wykonany","manuelle","handbediend"]
[{"$nulls":3},"elektrycznie","elektricky","electrical ","elektrisch","elektrycznie","motorisée","elektrisch"]
[{"$nulls":3},"Wysokość nadproża [mm]","Výška nádpraží [mm]","Height of lintel [mm]","Freiraum über Sturz [mm]","Wysokość nadproża [mm]","Retombée de linteau [mm]","Hoogte van de latei [mm]"]
[{"$nulls":3},"Wysokość nadproża (F) [mm]","Výška nádpraží (F) [mm]","Height of lintel (F) [mm]","Freiraum über Sturz (F) [mm]","Wysokość nadproża (F) [mm]","Retombée de linteau (F) [mm]","Hoogte van de latei (F) [mm]"]
[{"$nulls":3},"Rodzaj napędu","Typ pohonu","Type of motor","Der Typ des Antriebs","Rodzaj napędu","Type de motor","Type motor"]
[{"$nulls":3},"Informacje o napędu","Informace o motoru","Information regarding motor","Die Information über den Antrieb","Informacje o napędu","Information concernant le moteur","Informatie betreffende de motor"]
[{"$nulls":3},"Umieszczenie górnego uszczelnienia","Umístění horního těsnění","Placement of top sealing","Die Unterbringung der Oberdichtung","Umieszczenie górnego uszczelnienia","Emplacement du joint d'étanchéité","Plaatsing van de top afdichting"]
[{"$nulls":3},"Na nadprožu","na překladu","at lintel","Auf dem Sturz ","Na nadprožu","au linteau","op de latei"]
[{"$nulls":3},"Na górnej częśći ","na horní sekci","on the top section","Auf der Obersektion","Na górnej częśći ","sur le panneau supérieur","boven op top paneel"]
[{"$nulls":3},"SL wersja","Verze SL vedení","Version of SL track system","Version der SL-Umlenkung","SL wersja","SL version","Versie van SL beslagsysteem"]
[{"$nulls":3},"= zestawy bez wcześniej nawierconych otworów pod kątem pionowym, kąt pionowy w kolorze białym (RAL 9010)","= sety bez předvrtaných otvorů ve svislém úhelníku; svislý úhelník v bílém provedení (RAL 9010)","= set without pre-drilled holes in vertical angle; vertical angle in white color (RAL 9010)","= Zargensätze ohne vorgeborte Löcher, Ausführung in RAL 9010","= zestawy bez wcześniej nawierconych otworów pod kątem pionowym, kąt pionowy w kolorze białym (RAL 9010)","= Le kit sans trou percé dans le cornier vertical, le cornier vertical en exécution blanc (RAL 9010)","= Set is zonder voorgeboorde gaten in verticale hoek; verticale hoek in kleur wit (RAL 9010)"]
[{"$nulls":3},"wysokość prześwitu może zostać zmniejszona dzięki akcesoriom zainstalowanym po wewnętrznej stronie skrzydła drzwi (uchwyt, wzmocnienie itp.)","průjezdná výška může být snížena příslušenstvím nainstalovaným na vnitřní straně vratového křídla (madlo, výztuha apod.)","clear height could be decreased by accessories installed on inner side of door leaf (handgrip, reinforcing strut etc.)","Durchfahrtshöhe kann bei der Montage der Zubehörteile an die Innenseite des Torflügels reduziert werden (betrifft Handgriff, Versteifungen, etc.)","wysokość prześwitu może zostać zmniejszona dzięki akcesoriom zainstalowanym po wewnętrznej stronie skrzydła drzwi (uchwyt, wzmocnienie itp.)","L´ouverture de passage peut être réduite par les accessoires installés en intérieur du vantail de porte (les poignées, les renforts etc.)","De hoogte van de vrije ruimte kan worden verlaagd door accessoires die aan de binnenkant van het deurblad zijn gemonteerd (handgreep, verstevigingsprofielen, enz.)"]
[{"$nulls":3},"przy użyciu ogranicznika skrzydła bramy","při použití zarážky vratového křídla","when door stopper is used","bei der Verwendung der Toorflügelsperre","przy użyciu ogranicznika skrzydła bramy","avec la butée pour ventail de porte","wanneer de deurstopper wordt gebruikt"]
[{"$nulls":3},"Minimalne obciążenie sufitu / maksymalne obciążenie w każdym punkcie uchwycenia: 100 kg","Minimální únosnost stropu/maximální zatížení v každém kotevním bodě: 100 kg","Min. load capacity of ceiling/max. weight per hanging point: 100 kg","Minimale Tragfähigkeit der Decke/maximale Belastung in jedem einzelnen Befestigungspunkt: 100kg","Minimalne obciążenie sufitu / maksymalne obciążenie w każdym punkcie uchwycenia: 100 kg","Capacité min.de charge du plafond / capacité max.de charge des points d´ancre : 100kg","Minimaal draagvermogen van plafond/maximaal gewicht per bevestigingspunt: 100kg"]

{"sheet":"Selections","index":2,"n_rows":49,"n_cols":17,"rows_kept":49,"hidden":true}
["Výběr jazyka",null,"LHF-C"]
["CZ"]
["EN",null,{"$f":"Translation!B38","v":0},null,"Hloubka vedení",{"$nulls":3},{"$f":"Translation!B43","v":0},null,"Délka pohonu",null,null,"Kotvící bod pohonu"]
["DE"]
["PL",null,{"$f":"Translation!B39","v":0},null,0,{"$f":"2575","v":2575},null,null,"Black",null,{"$f":"I5","v":"Black"},null,null,{"$f":"I5","v":"Black"}]
["NL",null,{"$f":"Translation!B40","v":0},null,2001,2700,null,null,"RUN 600",null,0,3540,null,0,3265]
["FR",{"$nulls":3},2126,2825,{"$nulls":4},2376,4240,null,2376,3975]
[{"$nulls":4},2251,2950]
["Výběr uložení",{"$nulls":3},2376,3075,{"$nulls":4},{"$f":"I6","v":"RUN 600"},null,null,{"$f":"I6","v":"RUN 600"}]
["Ano",{"$nulls":3},2501,3325,{"$nulls":4},0,3100,null,0,2950]
["Ne",{"$nulls":3},2751,3575,{"$nulls":4},2126,4240,null,2126,4060]
[]
[null,null,"LHR-C"]
[]
[null,null,{"$f":"Translation!C38","v":0},null,"Hloubka vedení",{"$nulls":3},{"$f":"Translation!C43","v":0},null,"Délka pohonu",null,null,"Kotvící bod pohonu"]
[]
[null,null,{"$f":"Translation!C39","v":0},null,0,{"$f":"2575+120","v":2695},null,null,"Black",null,{"$f":"I17","v":"Black"},null,null,{"$f":"I17","v":"Black"}]
[null,null,{"$f":"Translation!C40","v":0},null,2001,{"$f":"2700+120","v":2820},null,null,"RUN 600",null,0,3540,null,0,3265]
[{"$nulls":4},2126,{"$f":"2825+120","v":2945},{"$nulls":4},2376,4240,null,2376,3975]
[null,null,"Umístění horního těsnění",null,2251,{"$f":"2950+120","v":3070},null,null,{"$f":"Translation!C42","v":0}]
[{"$nulls":4},2376,{"$f":"3075+120","v":3195},null,null,{"$f":"IF(H21=Selections!C17,90,IF(H21=Selections!C18,125,\"Error\"))","v":90},null,{"$f":"I18","v":"RUN 600"},null,null,{"$f":"I18","v":"RUN 600"}]
[null,null,{"$f":"Translation!C46","v":0},null,2501,{"$f":"3325+120","v":3445},null,null,{"$f":"IF(H22=Selections!C22,0,IF(H22=Selections!C23,35,\"Error\"))","v":0},null,0,3100,null,0,2950]
[null,null,{"$f":"Translation!C47","v":0},null,2751,{"$f":"3575+120","v":3695},{"$nulls":4},2126,4240,null,2126,4060]
[]
[null,null,"GV-SL"]
[]
[null,null,{"$f":"Translation!D38","v":"Sterowanie"},{"$nulls":5},{"$f":"Translation!D43","v":"Rodzaj napędu"},null,"Délka pohonu",null,null,"Kotvící bod pohonu",null,null,{"$f":"Translation!D48","v":"SL wersja"}]
[]
[null,null,{"$f":"Translation!D39","v":"ręcznie wykonany"},{"$nulls":5},"Black",null,{"$f":"I29","v":"Black"},null,null,{"$f":"I29","v":"Black"},null,null,"SL 350"]
[null,null,{"$f":"Translation!D40","v":"elektrycznie"},{"$nulls":5},"RUN 600",null,0,3540,null,0,3265,null,"SL 420"]
[{"$nulls":10},2376,4240,null,2376,3975]
[]
[{"$nulls":10},{"$f":"I30","v":"RUN 600"},null,null,{"$f":"I30","v":"RUN 600"}]
[{"$nulls":10},0,3100,null,0,2950]
[{"$nulls":10},2126,4240,null,2126,4060]
{"$rows_empty":10}
[{"$nulls":5},"Version of SL system",null,"SL wersja","SL version"]
[]
[]
[{"$nulls":9},"wanneer de deurstopper wordt gebruikt"]